fUST/lending_fUST_20240815
["ID","MTS","AMOUNT","RATE_DAILY","PERIOD"]
[334997143,1723716675723,-500.0,0.00015068,2]
[334997144,1723716675733,-500.0,0.00015068,2]
[334997145,1723716675744,-869.62,0.00015068,2]
[334997146,1723716675753,-500.0,0.00015068,2]
[334997147,1723716675763,-500.0,0.00015068,2]
[334997148,1723716675773,-590.23,0.00015068,2]
[334997149,1723716675783,-500.0,0.00015068,2]
[334997150,1723716675793,-509.45184133,0.00015068,2]
[334997151,1723716675803,-500.0,0.00015068,2]
[334997152,1723716675812,-500.0,0.00015068,2]
[334997153,1723716675822,-500.0,0.00015068,2]
[334997154,1723716675831,-736.55,0.00015068,2]
[334997155,1723716675841,-500.0,0.00015068,2]
[334997156,1723716675851,-632.59,0.00015068,2]
[334997157,1723716675861,-739.83,0.00015068,2]
[334997158,1723716675871,-500.0,0.00015068,2]
[334997159,1723716675880,-618.54,0.00015068,2]
[334997160,1723716675890,-500.0,0.00015068,2]
[334997161,1723716675899,-500.0,0.00015068,2]
[334997162,1723716675909,-500.0,0.00015068,2]
[334997163,1723716675919,-500.0,0.00015068,2]
[334997164,1723716676015,-500.0,0.00015068,2]
[334997165,1723716676025,-693.68,0.00015068,2]
[334997166,1723716676034,-586.18,0.00015068,2]
[334997167,1723716676044,-768.05,0.00015068,2]
[334997168,1723716676053,-500.0,0.00015068,2]
[334997169,1723716676063,-500.0,0.00015068,2]
[334997170,1723716676073,-500.0,0.00015068,2]
[334997171,1723716676083,-658.85,0.00015068,2]
[334997172,1723716676093,-500.0,0.00015068,2]
[334997173,1723716676103,-500.0,0.00015068,2]
[334997174,1723716676112,-724.88,0.00015068,2]
[334997175,1723716676122,-500.0,0.00015068,2]
[334997176,1723716676131,-500.0,0.00015068,2]
[334997177,1723716676141,-733.53,0.00015068,2]
[334997178,1723716676152,-500.0,0.00015068,2]
[334997179,1723716676161,-500.0,0.00015068,2]
[334997180,1723716676171,-500.0,0.00015068,2]
[334997181,1723716676181,-254.20445085,0.00015068,2]
[334997182,1723716676190,-507.04,0.00015068,2]
[334997183,1723716676200,-500.0,0.00015068,2]
[334997184,1723716676209,-500.0,0.00015068,2]
[334997185,1723716676219,-807.88,0.00015068,2]
[334997186,1723716676228,-1080.27,0.00015068,2]
[334997187,1723716676238,-618.64,0.00015068,2]
[334997188,1723716676247,-500.0,0.00015068,2]
[334997189,1723716676257,-500.0,0.00015068,2]
[334997190,1723716676267,-500.0,0.00015068,2]
[334997191,1723716676277,-422.48035425,0.00015068,2]
[334997192,1723716676287,-500.0,0.00015068,2]
[334997193,1723716676297,-500.0,0.00015068,2]
[334997194,1723716676307,-549.53,0.00015068,2]
[334997195,1723716676317,-761.97,0.00015068,2]
[334997196,1723716676326,-500.0,0.00015068,2]
[334997197,1723716676336,-500.0,0.00015068,2]
[334997198,1723716676346,-548.36490917,0.00015068,2]
[334997199,1723716676356,-500.0,0.00015068,2]
[334997200,1723716676365,-786.68,0.00015068,2]
[334997201,1723716676374,-500.0,0.00015068,2]
[334997202,1723716676385,-582.93,0.00015068,2]
[334997203,1723716676395,-500.0,0.00015068,2]
[334997204,1723716676406,-500.0,0.00015068,2]
[334997205,1723716676416,-500.0,0.00015068,2]
[334997206,1723716676426,-1007.52,0.00015068,2]
[334997207,1723716676436,-500.0,0.00015068,2]
[334997208,1723716676445,-1023.58,0.00015068,2]
[334997209,1723716676456,-500.0,0.00015068,2]
[334997210,1723716676466,-500.0,0.00015068,2]
[334997211,1723716676475,-636.2,0.00015068,2]
[334997212,1723716676485,-500.0,0.00015068,2]
[334997213,1723716676495,-523.91,0.00015068,2]
[334997214,1723716676504,-525.78,0.00015068,2]
[334997215,1723716676514,-500.0,0.00015068,2]
[334997216,1723716676524,-500.0,0.00015068,2]
[334997217,1723716676534,-540.2,0.00015068,2]
[334997218,1723716676543,-500.0,0.00015068,2]
[334997219,1723716676553,-722.89,0.00015068,2]
[334997220,1723716676563,-701.26,0.00015068,2]
[334997221,1723716676577,-500.0,0.00015068,2]
[334997222,1723716676587,-523.63,0.00015068,2]
[334997223,1723716676596,-500.0,0.00015068,2]
[334997224,1723716676606,-719.99,0.00015068,2]
[334997225,1723716676617,-705.57,0.00015068,2]
[334997226,1723716676627,-500.0,0.00015068,2]
[334997227,1723716676654,-760.14,0.00015068,2]
[334997228,1723716676673,-500.0,0.00015068,2]
[334997229,1723716676693,-500.0,0.00015068,2]
[334997230,1723716676714,-500.0,0.00015068,2]
[334997231,1723716676734,-500.0,0.00015068,2]
[334997232,1723716676754,-500.0,0.00015068,2]
[334997233,1723716676771,-703.21,0.00015068,2]
[334997234,1723716676787,-739.05,0.00015068,2]
[334997235,1723716676806,-809.79,0.00015068,2]
[334997236,1723716676826,-500.0,0.00015068,2]
[334997237,1723716676840,-753.0,0.00015068,2]
[334997238,1723716676859,-768.32,0.00015068,2]
[334997239,1723716676875,-735.32,0.00015068,2]
[334997240,1723716676893,-500.0,0.00015068,2]
[334997241,1723716676911,-500.0,0.00015068,2]
[334997242,1723716676927,-386.87594627,0.00015068,2]
[334997243,1723716676944,-588.82,0.00015068,2]
[334997244,1723716676958,-500.0,0.00015068,2]
[334997245,1723716676974,-601.68,0.00015068,2]
[334997246,1723716676990,-959.18,0.00015068,2]
[334997247,1723716677004,-500.0,0.00015068,2]
[334997248,1723716677020,-500.0,0.00015068,2]
[334997249,1723716677035,-500.0,0.00015068,2]
[334997250,1723716677051,-577.71,0.00015068,2]
[334997251,1723716677066,-500.0,0.00015068,2]
[334997252,1723716677082,-739.29,0.00015068,2]
[334997253,1723716677098,-500.0,0.00015068,2]
[334997254,1723716677113,-500.0,0.00015068,2]
[334997255,1723716677128,-863.69,0.00015068,2]
[334997256,1723716677144,-683.56,0.00015068,2]
[334997257,1723716677160,-1482.01,0.00015068,2]
[334997258,1723716677175,-500.0,0.00015068,2]
[334997259,1723716677191,-637.65,0.00015068,2]
[334997260,1723716677205,-752.65,0.00015068,2]
[334997261,1723716677219,-500.0,0.00015068,2]
[334997262,1723716677234,-500.0,0.00015068,2]
[334997263,1723716677249,-916.36,0.00015068,2]
[334997264,1723716677264,-500.0,0.00015068,2]
[334997265,1723716677278,-500.0,0.00015068,2]
[334997266,1723716677292,-905.05,0.00015068,2]
[334997267,1723716677307,-1137.78,0.00015068,2]
[334997268,1723716677323,-500.0,0.00015068,2]
[334997269,1723716677338,-500.0,0.00015068,2]
[334997270,1723716677352,-500.0,0.00015068,2]
[334997271,1723716677367,-500.0,0.00015068,2]
[334997272,1723716677381,-581.08,0.00015068,2]
[334997273,1723716677399,-618.51,0.00015068,2]
[334997274,1723716677415,-500.0,0.00015068,2]
[334997275,1723716677429,-696.9,0.00015068,2]
[334997276,1723716677447,-615.83,0.00015068,2]
[334997277,1723716677462,-500.0,0.00015068,2]
[334997278,1723716677477,-1246.53,0.00015068,2]
[334997279,1723716677492,-1277.91,0.00015068,2]
[334997280,1723716677507,-500.0,0.00015068,2]
[334997281,1723716677522,-500.0,0.00015068,2]
[334997282,1723716677538,-822.29,0.00015068,2]
[334997283,1723716677556,-500.0,0.00015068,2]
[334997284,1723716677573,-500.0,0.00015068,2]
[334997285,1723716677590,-801.88,0.00015068,2]
[334997286,1723716677605,-504.00914304,0.00015068,2]
[334997287,1723716677622,-413.27718969,0.00015068,2]
[334997288,1723716677637,-500.0,0.00015068,2]
[334997289,1723716677655,-536.68,0.00015068,2]
[334997290,1723716677782,-500.0,0.00015068,2]
[334997291,1723716677804,-500.0,0.00015068,2]
[334997292,1723716677816,-3994.14,0.00015068,2]
[334997293,1723716677827,-546.03,0.00015068,2]
[334997294,1723716677839,-542.93663636,0.00015068,2]
[334997295,1723716677851,-500.0,0.00015068,2]
[334997296,1723716677863,-653.84,0.00015068,2]
[334997297,1723716677872,-855.41,0.00015068,2]
[334997298,1723716677881,-1698.32,0.00015068,2]
[334997299,1723716677890,-500.0,0.00015068,2]
[334997300,1723716677901,-500.0,0.00015068,2]
[334997301,1723716677911,-500.0,0.00015068,2]
[334997302,1723716677920,-500.0,0.00015068,2]
[334997303,1723716677930,-865.22,0.00015068,2]
[334997304,1723716677939,-1671.37,0.00015068,2]
[334997305,1723716677949,-701.74,0.00015068,2]
[334997306,1723716677960,-1706.36,0.00015068,2]
[334997307,1723716677969,-556.69,0.00015068,2]
[334997308,1723716677979,-996.25,0.00015068,2]
[334997309,1723716677989,-500.0,0.00015068,2]
[334997310,1723716677999,-500.0,0.00015068,2]
[334997311,1723716678010,-502.65438723,0.00015068,2]
[334997312,1723716678021,-1331.16,0.00015068,2]
[334997313,1723716678030,-500.0,0.00015068,2]
[334997314,1723716678040,-521.14,0.00015068,2]
[334997315,1723716678050,-581.45,0.00015068,2]
[334997316,1723716678060,-1209.32,0.00015068,2]
[334997317,1723716678071,-1818.92,0.00015068,2]
[334997318,1723716678081,-500.0,0.00015068,2]
[334997319,1723716678091,-1100.1,0.00015068,2]
[334997320,1723716678101,-315.78383574,0.00015068,2]
[334997321,1723716678111,-562.82,0.00015068,2]
[334997322,1723716678122,-2254.64,0.00015068,2]
[334997323,1723716678132,-500.0,0.00015068,2]
[334997324,1723716678142,-1967.02,0.00015068,2]
[334997325,1723716678154,-988.01,0.00015068,2]
[334997326,1723716678163,-500.0,0.00015068,2]
[334997327,1723716678173,-527.63,0.00015068,2]
[334997328,1723716678182,-927.26,0.00015068,2]
[334997329,1723716678192,-500.0,0.00015068,2]
[334997330,1723716678203,-719.3,0.00015068,2]
[334997331,1723716678213,-572.43,0.00015068,2]
[334997332,1723716678222,-234.60264328,0.00015068,2]
[334997333,1723716678233,-799.05,0.00015068,2]
[334997334,1723716678243,-581.88,0.00015068,2]
[334997335,1723716678254,-2164.18,0.00015068,2]
[334997336,1723716678266,-500.0,0.00015068,2]
[334997337,1723716678275,-2006.92,0.00015068,2]
[334997338,1723716678285,-761.66,0.00015068,2]
[334997339,1723716678295,-2873.64,0.00015068,2]
[334997340,1723716678305,-500.0,0.00015068,2]
[334997341,1723716678315,-561.92,0.00015068,2]
[334997342,1723716678325,-7862.62,0.00015068,2]
[334997343,1723716678335,-500.0,0.00015068,2]
[334997344,1723716678345,-500.0,0.00015068,2]
[334997345,1723716678354,-688.24,0.00015068,2]
[334997346,1723716678364,-712.1,0.00015068,2]
[334997347,1723716678374,-2181.37,0.00015068,2]
[334997348,1723716678384,-527.87,0.00015068,2]
[334997349,1723716678394,-500.0,0.00015068,2]
[334997350,1723716678406,-500.0,0.00015068,2]
[334997351,1723716678415,-500.0,0.00015068,2]
[334997352,1723716678425,-1909.95,0.00015068,2]
[334997353,1723716678434,-747.02,0.00015068,2]
[334997354,1723716678444,-1074.32,0.00015068,2]
[334997355,1723716678455,-1120.97,0.00015068,2]
[334997356,1723716678465,-500.0,0.00015068,2]
[334997357,1723716678474,-844.17,0.00015068,2]
[334997358,1723716678484,-1067.37,0.00015068,2]
[334997359,1723716678497,-562.8,0.00015068,2]
[334997360,1723716678508,-658.27,0.00015068,2]
[334997361,1723716678517,-500.0,0.00015068,2]
[334997362,1723716678527,-1035.86,0.00015068,2]
[334997363,1723716678537,-1942.4,0.00015068,2]
[334997364,1723716678547,-580.84,0.00015068,2]
[334997365,1723716678557,-860.49,0.00015068,2]
[334997366,1723716678567,-948.67,0.00015068,2]
[334997367,1723716678581,-500.0,0.00015068,2]
[334997368,1723716678590,-500.0,0.00015068,2]
[334997369,1723716678601,-4530.48,0.00015068,2]
[334997370,1723716678612,-347.18622273,0.00015068,2]
[334997371,1723716678623,-1310.27,0.00015068,2]
[334997372,1723716678636,-615.48,0.00015068,2]
[334997373,1723716678647,-1631.5,0.00015068,2]
[334997374,1723716678660,-504.55,0.00015068,2]
[334997375,1723716678671,-8000.61,0.00015068,2]
[334997376,1723716678681,-500.0,0.00015068,2]
[334997377,1723716678691,-500.0,0.00015068,2]
[334997378,1723716678701,-700.72,0.00015068,2]
[334997379,1723716678711,-160.69888393,0.00015068,2]
[334997380,1723716678721,-500.0,0.00015068,2]
[334997381,1723716678730,-1156.31,0.00015068,2]
[334997382,1723716678741,-1318.64,0.00015068,2]
[334997383,1723716678751,-500.0,0.00015068,2]
[334997384,1723716678761,-777.45,0.00015068,2]
[334997385,1723716678771,-2060.47,0.00015068,2]
[334997386,1723716678781,-1553.53,0.00015068,2]
[334997387,1723716678792,-2404.91,0.00015068,2]
[334997388,1723716678801,-500.0,0.00015068,2]
[334997389,1723716678811,-853.54,0.00015068,2]
[334997390,1723716678821,-4995.59,0.00015068,2]
[334997391,1723716678832,-671.77,0.00015068,2]
[334997392,1723716678844,-1660.52,0.00015068,2]
[334997393,1723716678854,-500.0,0.00015068,2]
[334997394,1723716678865,-500.0,0.00015068,2]
[334997395,1723716678876,-500.0,0.00015068,2]
[334997396,1723716678886,-567.31,0.00015068,2]
[334997397,1723716678896,-1508.2,0.00015068,2]
[334997398,1723716678905,-919.55,0.00015068,2]
[334997399,1723716678915,-1025.91,0.00015068,2]
[334997400,1723716678925,-500.0,0.00015068,2]
[334997401,1723716678936,-502.22132247,0.00015068,2]
[334997402,1723716678946,-500.0,0.00015068,2]
[334997403,1723716678956,-569.43,0.00015068,2]
[334997404,1723716678966,-1601.78,0.00015068,2]
[334997405,1723716678975,-529.83,0.00015068,2]
[334997406,1723716678986,-1505.39,0.00015068,2]
[334997407,1723716678996,-500.0,0.00015068,2]
[334997408,1723716679005,-706.04,0.00015068,2]
[334997409,1723716679015,-1190.58,0.00015068,2]
[334997410,1723716679024,-2092.37,0.00015068,2]
[334997411,1723716679034,-570.66,0.00015068,2]
[334997412,1723716679044,-500.0,0.00015068,2]
[334997413,1723716679053,-500.0,0.00015068,2]
[334997414,1723716679063,-861.8,0.00015068,2]
[334997415,1723716679072,-622.908087,0.00015068,2]
[334997416,1723716679082,-1608.08,0.00015068,2]
[334997417,1723716679093,-500.0,0.00015068,2]
[334997418,1723716679103,-692.86,0.00015068,2]
[334997419,1723716679112,-500.0,0.00015068,2]
[334997420,1723716679123,-500.0,0.00015267,2]
[334997421,1723716679134,-633.39,0.00015342,2]
[334997422,1723716679145,-500.0,0.00015342,2]
[334997423,1723716679155,-714.19,0.00015342,2]
[334997424,1723716679164,-978.47,0.00015342,2]
[334997425,1723716679174,-500.0,0.00015342,2]
[334997426,1723716679184,-500.0,0.00015342,2]
[334997427,1723716679194,-500.0,0.00015342,2]
[334997428,1723716679203,-727.05,0.00015342,2]
[334997429,1723716679215,-500.0,0.00015342,2]
[334997430,1723716679225,-500.0,0.00015342,2]
[334997431,1723716679236,-500.0,0.00015342,2]
[334997432,1723716679245,-697.47,0.00015342,2]
[334997433,1723716679255,-500.0,0.00015342,2]
[334997434,1723716679265,-766.4,0.00015342,2]
[334997435,1723716679276,-500.0,0.00015342,2]
[334997436,1723716679286,-500.0,0.00015342,2]
[334997437,1723716679297,-500.0,0.00015342,2]
[334997438,1723716679308,-529.06005302,0.00015342,2]
[334997439,1723716679319,-202.00680426,0.00015342,2]
[334997440,1723716679329,-500.0,0.00015342,2]
[334997441,1723716679339,-500.0,0.00015342,2]
[334997442,1723716679349,-500.0,0.00015342,2]
[334997443,1723716679358,-500.0,0.00015342,2]
[334997444,1723716679368,-500.0,0.00015342,2]
[334997445,1723716679379,-869.62,0.00015342,2]
[334997446,1723716679389,-500.0,0.00015342,2]
[334997447,1723716679400,-500.0,0.00015342,2]
[334997448,1723716679410,-590.23,0.00015342,2]
[334997449,1723716679419,-500.0,0.00015342,2]
[334997450,1723716679429,-500.0,0.00015342,2]
[334997451,1723716679439,-500.0,0.00015342,2]
[334997452,1723716679452,-500.0,0.00015342,2]
[334997453,1723716679462,-736.55,0.00015342,2]
[334997454,1723716679471,-500.0,0.00015342,2]
[334997455,1723716679481,-632.59,0.00015342,2]
[334997456,1723716679491,-739.83,0.00015342,2]
[334997457,1723716679502,-500.0,0.00015342,2]
[334997458,1723716679512,-618.54,0.00015342,2]
[334997459,1723716679522,-500.0,0.00015342,2]
[334997460,1723716679532,-500.0,0.00015342,2]
[334997461,1723716679542,-500.0,0.00015342,2]
[334997462,1723716679552,-500.0,0.00015342,2]
[334997463,1723716679563,-500.0,0.00015342,2]
[334997464,1723716679577,-693.68,0.00015342,2]
[334997465,1723716679588,-586.18,0.00015342,2]
[334997466,1723716679598,-768.05,0.00015342,2]
[334997467,1723716679607,-500.0,0.00015342,2]
[334997468,1723716679619,-525.72787591,0.00015342,2]
[334997469,1723716679630,-500.0,0.00015342,2]
[334997470,1723716679639,-658.85,0.00015342,2]
[334997471,1723716679650,-500.0,0.00015342,2]
[334997472,1723716679662,-500.0,0.00015342,2]
[334997473,1723716679672,-724.88,0.00015342,2]
[334997474,1723716679682,-500.0,0.00015342,2]
[334997475,1723716679692,-500.0,0.00015342,2]
[334997476,1723716679703,-733.53,0.00015342,2]
[334997477,1723716679713,-500.0,0.00015342,2]
[334997478,1723716679725,-500.0,0.00015342,2]
[334997479,1723716679737,-500.0,0.00015342,2]
[334997480,1723716679748,-507.04,0.00015342,2]
[334997481,1723716679758,-500.0,0.00015342,2]
[334997482,1723716679768,-500.0,0.00015342,2]
[334997483,1723716679778,-807.88,0.00015342,2]
[334997484,1723716679788,-1080.27,0.00015342,2]
[334997485,1723716679798,-618.64,0.00015342,2]
[334997486,1723716679808,-602.15794229,0.00015342,2]
[334997487,1723716679817,-500.0,0.00015342,2]
[334997488,1723716679828,-500.0,0.00015342,2]
[334997489,1723716679839,-500.0,0.00015342,2]
[334997490,1723716679848,-500.0,0.00015342,2]
[334997491,1723716679858,-549.53,0.00015342,2]
[334997492,1723716679868,-761.97,0.00015342,2]
[334997493,1723716679878,-500.0,0.00015342,2]
[334997494,1723716679887,-500.0,0.00015342,2]
[334997495,1723716679897,-500.0,0.00015342,2]
[334997496,1723716679907,-786.68,0.00015342,2]
[334997497,1723716679917,-500.0,0.00015342,2]
[334997498,1723716679927,-582.93,0.00015342,2]
[334997499,1723716679937,-500.0,0.00015342,2]
[334997500,1723716679947,-500.0,0.00015342,2]
[334997501,1723716679957,-500.0,0.00015342,2]
[334997502,1723716679966,-500.0,0.00015342,2]
[334997503,1723716679976,-1007.52,0.00015342,2]
[334997504,1723716679987,-1023.58,0.00015342,2]
[334997505,1723716679997,-500.0,0.00015342,2]
[334997506,1723716680007,-500.0,0.00015342,2]
[334997507,1723716680018,-636.2,0.00015342,2]
[334997508,1723716680028,-500.0,0.00015342,2]
[334997509,1723716680039,-523.91,0.00015342,2]
[334997510,1723716680049,-525.78,0.00015342,2]
[334997511,1723716680059,-500.0,0.00015342,2]
[334997512,1723716680069,-500.0,0.00015342,2]
[334997513,1723716680079,-540.2,0.00015342,2]
[334997514,1723716680089,-500.0,0.00015342,2]
[334997515,1723716680099,-722.89,0.00015342,2]
[334997516,1723716680109,-701.26,0.00015342,2]
[334997517,1723716680121,-500.0,0.00015342,2]
[334997518,1723716680131,-523.63,0.00015342,2]
[334997519,1723716680142,-500.0,0.00015342,2]
[334997520,1723716680154,-719.99,0.00015342,2]
[334997521,1723716680165,-705.57,0.00015342,2]
[334997522,1723716680281,-500.0,0.00015342,2]
[334997523,1723716680291,-760.14,0.00015342,2]
[334997524,1723716680301,-500.0,0.00015342,2]
[334997525,1723716680311,-500.0,0.00015342,2]
[334997526,1723716680320,-500.0,0.00015342,2]
[334997527,1723716680330,-500.0,0.00015342,2]
[334997528,1723716680340,-500.0,0.00015342,2]
[334997529,1723716680349,-703.21,0.00015342,2]
[334997530,1723716680359,-739.05,0.00015342,2]
[334997531,1723716680370,-809.79,0.00015342,2]
[334997532,1723716680380,-500.0,0.00015342,2]
[334997533,1723716680392,-753.0,0.00015342,2]
[334997534,1723716680404,-768.32,0.00015342,2]
[334997535,1723716680413,-735.32,0.00015342,2]
[334997536,1723716680423,-500.0,0.00015342,2]
[334997537,1723716680434,-500.0,0.00015342,2]
[334997538,1723716680446,-588.82,0.00015342,2]
[334997539,1723716680457,-500.0,0.00015342,2]
[334997540,1723716680466,-601.68,0.00015342,2]
[334997541,1723716680475,-959.18,0.00015342,2]
[334997542,1723716680485,-500.0,0.00015342,2]
[334997543,1723716680495,-500.0,0.00015342,2]
[334997544,1723716680505,-500.0,0.00015342,2]
[334997545,1723716680515,-577.71,0.00015342,2]
[334997546,1723716680524,-500.0,0.00015342,2]
[334997547,1723716680534,-739.29,0.00015342,2]
[334997548,1723716680545,-500.0,0.00015342,2]
[334997549,1723716680556,-500.0,0.00015342,2]
[334997550,1723716680566,-863.69,0.00015342,2]
[334997551,1723716680580,-683.56,0.00015342,2]
[334997552,1723716680590,-500.0,0.00015342,2]
[334997553,1723716680600,-1482.01,0.00015342,2]
[334997554,1723716680611,-637.65,0.00015342,2]
[334997555,1723716680621,-752.65,0.00015342,2]
[334997556,1723716680630,-500.0,0.00015342,2]
[334997557,1723716680639,-500.0,0.00015342,2]
[334997558,1723716680650,-916.36,0.00015342,2]
[334997559,1723716680668,-269.62794782,0.00015342,2]
[334997560,1723716680678,-500.0,0.00015342,2]
[334997561,1723716680687,-905.05,0.00015342,2]
[334997562,1723716680697,-1137.78,0.00015342,2]
[334997563,1723716680710,-500.0,0.00015342,2]
[334997564,1723716680720,-500.0,0.00015342,2]
[334997565,1723716680731,-500.0,0.00015342,2]
[334997566,1723716680741,-500.0,0.00015342,2]
[334997567,1723716680752,-581.08,0.00015342,2]
[334997568,1723716680763,-618.51,0.00015342,2]
[334997569,1723716680774,-500.0,0.00015342,2]
[334997570,1723716680788,-696.9,0.00015342,2]
[334997571,1723716680797,-615.83,0.00015342,2]
[334997572,1723716680807,-500.0,0.00015342,2]
[334997573,1723716680817,-1246.53,0.00015342,2]
[334997574,1723716680827,-1277.91,0.00015342,2]
[334997575,1723716680836,-500.0,0.00015342,2]
[334997576,1723716680846,-500.0,0.00015342,2]
[334997577,1723716680856,-822.29,0.00015342,2]
[334997578,1723716680866,-233.35390209,0.00015342,2]
[334997579,1723716680876,-500.0,0.00015342,2]
[334997580,1723716680886,-801.88,0.00015342,2]
[334997581,1723716680896,-500.0,0.00015342,2]
[334997582,1723716680912,-536.68,0.00015342,2]
[334997583,1723716680922,-500.0,0.00015342,2]
[334997584,1723716680935,-500.0,0.00015342,2]
[334997585,1723716680945,-3994.14,0.00015342,2]
[334997586,1723716680956,-546.03,0.00015342,2]
[334997587,1723716680966,-254.11897181,0.00015342,2]
[334997588,1723716680976,-653.84,0.00015342,2]
[334997589,1723716680986,-855.41,0.00015342,2]
[334997590,1723716680998,-1698.32,0.00015342,2]
[334997591,1723716681010,-500.0,0.00015342,2]
[334997592,1723716681020,-500.0,0.00015342,2]
[334997593,1723716681030,-500.0,0.00015342,2]
[334997594,1723716681040,-536.28461288,0.00015342,2]
[334997595,1723716681050,-865.22,0.00015342,2]
[334997596,1723716681061,-1671.37,0.00015342,2]
[334997597,1723716681071,-701.74,0.00015342,2]
[334997598,1723716681081,-1706.36,0.00015342,2]
[334997599,1723716681091,-556.69,0.00015342,2]
[334997600,1723716681101,-996.25,0.00015342,2]
[334997601,1723716681111,-500.0,0.00015342,2]
[334997602,1723716681121,-500.0,0.00015342,2]
[334997603,1723716681131,-1331.16,0.00015342,2]
[334997604,1723716681143,-500.0,0.00015342,2]
[334997605,1723716681157,-521.14,0.00015342,2]
[334997606,1723716681166,-581.45,0.00015342,2]
[334997607,1723716681176,-1209.32,0.00015342,2]
[334997608,1723716681186,-1818.92,0.00015342,2]
[334997609,1723716681196,-500.0,0.00015342,2]
[334997610,1723716681206,-1100.1,0.00015342,2]
[334997611,1723716681215,-562.82,0.00015342,2]
[334997612,1723716681226,-2254.64,0.00015342,2]
[334997613,1723716681236,-302.88252513,0.00015342,2]
[334997614,1723716681247,-1967.02,0.00015342,2]
[334997615,1723716681258,-507.11718931,0.00015342,2]
[334997616,1723716681267,-988.01,0.00015342,2]
[334997617,1723716681277,-527.63,0.00015342,2]
[334997618,1723716681286,-927.26,0.00015342,2]
[334997619,1723716681296,-500.0,0.00015342,2]
[334997620,1723716681305,-719.3,0.00015342,2]
[334997621,1723716681315,-572.43,0.00015342,2]
[334997622,1723716681325,-799.05,0.00015342,2]
[334997623,1723716681337,-581.88,0.00015342,2]
[334997624,1723716681347,-2164.18,0.00015342,2]
[334997625,1723716681359,-547.33608195,0.00015342,2]
[334997626,1723716681370,-2006.92,0.00015342,2]
[334997627,1723716681380,-761.66,0.00015342,2]
[334997628,1723716681390,-2873.64,0.00015342,2]
[334997629,1723716681400,-500.0,0.00015342,2]
[334997630,1723716681416,-561.92,0.00015342,2]
[334997631,1723716681432,-7862.62,0.00015342,2]
[334997632,1723716681442,-500.0,0.00015342,2]
[334997633,1723716681451,-688.24,0.00015342,2]
[334997634,1723716681460,-500.0,0.00015342,2]
[334997635,1723716681470,-712.1,0.00015342,2]
[334997636,1723716681480,-2181.37,0.00015342,2]
[334997637,1723716681490,-527.87,0.00015342,2]
[334997638,1723716681500,-500.0,0.00015342,2]
[334997639,1723716681510,-500.0,0.00015342,2]
[334997640,1723716681519,-500.0,0.00015342,2]
[334997641,1723716681528,-1909.95,0.00015342,2]
[334997642,1723716681538,-747.02,0.00015342,2]